[Event "Late-Titled-Tuesday-Blitz-March-05-2024"]
[Site "Chess.com"]
[Date "2024.03.05"]
[Round "4"]
[White "BilicVladimir"]
[Black "Heydarli77"]
[Result "1-0"]
[WhiteElo "2635"]
[BlackElo "2387"]
[TimeControl "180+1"]
[EndTime "14:40:46 PST"]
[Termination "BilicVladimir won on time"]

1. e4 {[%clk 0:03:00.9]} 1... c5 {[%clk 0:02:57]} 2. Nf3 {[%clk 0:03:00.9]} 2...
e6 {[%clk 0:02:55.1]} 3. b3 {[%clk 0:03:00.5]} 3... Nf6 {[%clk 0:02:51.7]} 4. e5
{[%clk 0:03:00.2]} 4... Nd5 {[%clk 0:02:50.7]} 5. Bb2 {[%clk 0:03:00.9]} 5...
Be7 {[%clk 0:02:48.2]} 6. g3 {[%clk 0:03:00.9]} 6... O-O {[%clk 0:02:47.3]} 7.
Bg2 {[%clk 0:03:01.2]} 7... Nc6 {[%clk 0:02:47.5]} 8. O-O {[%clk 0:03:00.9]}
8... b6 {[%clk 0:02:45]} 9. d4 {[%clk 0:02:58.4]} 9... Bb7 {[%clk 0:02:40.5]}
10. dxc5 {[%clk 0:02:57.4]} 10... Bxc5 {[%clk 0:02:39.6]} 11. c4 {[%clk
0:02:56.4]} 11... Nc7 {[%clk 0:02:35.7]} 12. Nc3 {[%clk 0:02:54.5]} 12... d5
{[%clk 0:02:29.2]} 13. cxd5 {[%clk 0:02:51.6]} 13... exd5 {[%clk 0:02:25.7]} 14.
a3 {[%clk 0:02:42.1]} 14... Be7 {[%clk 0:02:18.4]} 15. Ne2 {[%clk 0:02:40]}
15... Ne6 {[%clk 0:02:12]} 16. Re1 {[%clk 0:02:31.2]} 16... Qd7 {[%clk
0:02:05.2]} 17. Ned4 {[%clk 0:02:30.9]} 17... Rfd8 {[%clk 0:01:59.4]} 18. Nxc6
{[%clk 0:02:30.5]} 18... Bxc6 {[%clk 0:01:57.9]} 19. Nd4 {[%clk 0:02:31]} 19...
Bb7 {[%clk 0:01:55]} 20. f4 {[%clk 0:02:28.9]} 20... Bc5 {[%clk 0:01:52.2]} 21.
Kh1 {[%clk 0:02:28.1]} 21... Nxd4 {[%clk 0:01:42.8]} 22. Bxd4 {[%clk 0:02:27.2]}
22... Qb5 {[%clk 0:01:42.2]} 23. b4 {[%clk 0:02:25.3]} 23... Bxd4 {[%clk
0:01:39.6]} 24. Qxd4 {[%clk 0:02:25]} 24... Rac8 {[%clk 0:01:39.5]} 25. Rac1
{[%clk 0:02:24]} 25... Qd7 {[%clk 0:01:28.5]} 26. Red1 {[%clk 0:02:19.5]} 26...
Rxc1 {[%clk 0:01:25.1]} 27. Rxc1 {[%clk 0:02:18.9]} 27... g6 {[%clk 0:01:21.9]}
28. h3 {[%clk 0:02:16.9]} 28... Rc8 {[%clk 0:01:13.2]} 29. Rd1 {[%clk
0:02:16.4]} 29... Rd8 {[%clk 0:01:03.4]} 30. Kh2 {[%clk 0:02:15.1]} 30... Qe6
{[%clk 0:01:01.6]} 31. g4 {[%clk 0:02:13.9]} 31... Qe7 {[%clk 0:00:58.4]} 32. f5
{[%clk 0:02:10.7]} 32... Re8 {[%clk 0:00:55]} 33. Re1 {[%clk 0:02:06.3]} 33...
Rd8 {[%clk 0:00:49.4]} 34. e6 {[%clk 0:02:05.7]} 34... fxe6 {[%clk 0:00:44.6]}
35. fxe6 {[%clk 0:02:01]} 35... Qd6+ {[%clk 0:00:44.1]} 36. Kg1 {[%clk
0:02:00.2]} 36... Re8 {[%clk 0:00:43.9]} 37. Qf6 {[%clk 0:01:51.5]} 37... Rf8
{[%clk 0:00:41.3]} 38. Qg5 {[%clk 0:01:47.8]} 38... Re8 {[%clk 0:00:37.8]} 39.
e7 {[%clk 0:01:44.4]} 39... Kf7 {[%clk 0:00:35.1]} 40. Qh6 {[%clk 0:01:39.8]}
40... Kg8 {[%clk 0:00:32.9]} 41. Qh4 {[%clk 0:01:38.8]} 41... Kg7 {[%clk
0:00:21.5]} 42. Bf3 {[%clk 0:01:27.7]} 42... Qf6 {[%clk 0:00:21.3]} 43. Qxf6+
{[%clk 0:01:14.6]} 43... Kxf6 {[%clk 0:00:21.7]} 44. Rc1 {[%clk 0:01:15.2]}
44... Rxe7 {[%clk 0:00:20.9]} 45. Kf2 {[%clk 0:01:16.1]} 45... Rd7 {[%clk
0:00:19.4]} 46. Rd1 {[%clk 0:01:14.1]} 46... Ke5 {[%clk 0:00:19.1]} 47. Re1+
{[%clk 0:01:13.9]} 47... Kd6 {[%clk 0:00:18.3]} 48. g5 {[%clk 0:01:11.7]} 48...
Rf7 {[%clk 0:00:18.2]} 49. Kg3 {[%clk 0:01:11.1]} 49... Re7 {[%clk 0:00:17.6]}
50. Rd1 {[%clk 0:01:10]} 50... Re5 {[%clk 0:00:16.5]} 51. h4 {[%clk 0:01:09.5]}
51... Re3 {[%clk 0:00:16.5]} 52. Kf4 {[%clk 0:01:07.8]} 52... Rxa3 {[%clk
0:00:16.3]} 53. Re1 {[%clk 0:01:03.3]} 53... Bc6 {[%clk 0:00:15.8]} 54. Bg4
{[%clk 0:00:58.6]} 54... Bd7 {[%clk 0:00:15.7]} 55. Bxd7 {[%clk 0:00:57.4]}
55... Kxd7 {[%clk 0:00:16]} 56. Ke5 {[%clk 0:00:56]} 56... Rb3 {[%clk
0:00:13.5]} 57. Kf6 {[%clk 0:00:55.4]} 57... Rxb4 {[%clk 0:00:13.1]} 58. Re7+
{[%clk 0:00:53.5]} 58... Kd6 {[%clk 0:00:11.4]} 59. Rxh7 {[%clk 0:00:53.9]}
59... a5 {[%clk 0:00:10.6]} 60. Kxg6 {[%clk 0:00:53.9]} 60... a4 {[%clk
0:00:11]} 61. Rh8 {[%clk 0:00:54.1]} 61... Rg4 {[%clk 0:00:09.3]} 62. h5 {[%clk
0:00:54]} 62... a3 {[%clk 0:00:07.6]} 63. Ra8 {[%clk 0:00:52]} 63... Rg3 {[%clk
0:00:07.6]} 64. h6 {[%clk 0:00:52.4]} 64... b5 {[%clk 0:00:06.3]} 65. h7 {[%clk
0:00:52.7]} 65... Rh3 {[%clk 0:00:05.6]} 66. Kf5 {[%clk 0:00:51.4]} 66... b4
{[%clk 0:00:05.4]} 67. g6 {[%clk 0:00:51.7]} 67... b3 {[%clk 0:00:04]} 68. g7
{[%clk 0:00:49.9]} 68... b2 {[%clk 0:00:03.5]} 69. Rb8 {[%clk 0:00:48.7]} 69...
a2 {[%clk 0:00:03.3]} 70. Rxb2 {[%clk 0:00:43.4]} 70... a1=Q {[%clk 0:00:02.7]}
71. g8=Q {[%clk 0:00:43.6]} 71... Qf1+ {[%clk 0:00:01.9]} 72. Rf2 {[%clk
0:00:29.9]} 72... Qxf2+ {[%clk 0:00:01.5]} 73. Kg6 {[%clk 0:00:30.8]} 1-0

[Event "Late-Titled-Tuesday-Blitz-March-05-2024"]
[Site "Chess.com"]
[Date "2024.03.05"]
[Round "4"]
[White "XeresLt"]
[Black "ozates"]
[Result "0-1"]
[WhiteElo "2467"]
[BlackElo "2600"]
[TimeControl "180+1"]
[EndTime "14:40:47 PST"]
[Termination "ozates won by checkmate"]

1. e4 {[%clk 0:03:00.9]} 1... c5 {[%clk 0:02:58.9]} 2. Nf3 {[%clk 0:03:00.6]}
2... Nc6 {[%clk 0:02:58.7]} 3. d4 {[%clk 0:03:00.9]} 3... cxd4 {[%clk
0:02:59.6]} 4. Nxd4 {[%clk 0:03:01.7]} 4... e5 {[%clk 0:02:58.2]} 5. Nb5 {[%clk
0:03:01.8]} 5... d6 {[%clk 0:02:58.5]} 6. N1c3 {[%clk 0:03:00.8]} 6... a6 {[%clk
0:02:58.1]} 7. Na3 {[%clk 0:03:01.7]} 7... b5 {[%clk 0:02:58]} 8. Nd5 {[%clk
0:03:00.8]} 8... Nge7 {[%clk 0:02:58.4]} 9. c4 {[%clk 0:02:59.7]} 9... Nd4
{[%clk 0:02:58]} 10. cxb5 {[%clk 0:02:54.6]} 10... Nxd5 {[%clk 0:02:57]} 11.
exd5 {[%clk 0:02:54.8]} 11... Bd7 {[%clk 0:02:57.7]} 12. bxa6 {[%clk 0:02:51.4]}
12... Qa5+ {[%clk 0:02:56.6]} 13. Bd2 {[%clk 0:02:51.2]} 13... Qxd5 {[%clk
0:02:57.5]} 14. Nc2 {[%clk 0:02:47.9]} 14... Qe4+ {[%clk 0:02:51.7]} 15. Ne3
{[%clk 0:02:48.1]} 15... f5 {[%clk 0:02:52.4]} 16. Qb1 {[%clk 0:02:37]} 16...
Qh4 {[%clk 0:02:50.8]} 17. Nd5 {[%clk 0:02:23.9]} 17... Kf7 {[%clk 0:02:28.9]}
18. Nc7 {[%clk 0:02:06.1]} 18... Rc8 {[%clk 0:02:27.8]} 19. Bc4+ {[%clk
0:02:00.3]} 19... Kg6 {[%clk 0:02:27.6]} 20. a7 {[%clk 0:01:55.5]} 20... Bc6
{[%clk 0:02:27.8]} 21. Nd5 {[%clk 0:01:43.2]} 21... Qg4 {[%clk 0:02:10.9]} 22.
Ne3 {[%clk 0:01:39.2]} 22... Qh5 {[%clk 0:02:02.2]} 23. g4 {[%clk 0:01:34.4]}
23... Qh3 {[%clk 0:01:48.2]} 24. Nxf5 {[%clk 0:01:18.1]} 24... Nf3+ {[%clk
0:01:47.6]} 25. Ke2 {[%clk 0:01:10.2]} 25... e4 {[%clk 0:01:41.5]} 26. Ne3
{[%clk 0:00:40.2]} 26... Be7 {[%clk 0:01:23.8]} 27. Qf1 {[%clk 0:00:34.5]} 27...
Nd4+ {[%clk 0:01:13]} 28. Ke1 {[%clk 0:00:31]} 28... Qf3 {[%clk 0:01:10.8]} 29.
h4 {[%clk 0:00:24.1]} 29... h5 {[%clk 0:00:57.3]} 30. Rh3 {[%clk 0:00:23.4]}
30... Qf4 {[%clk 0:00:52.6]} 31. gxh5+ {[%clk 0:00:22.4]} 31... Rxh5 {[%clk
0:00:52.2]} 32. Rg3+ {[%clk 0:00:20.6]} 32... Kh7 {[%clk 0:00:50.9]} 33. Rc1
{[%clk 0:00:19.3]} 33... Bxh4 {[%clk 0:00:45.5]} 34. Ng2 {[%clk 0:00:15.1]}
34... Nf3+ {[%clk 0:00:44.7]} 35. Rxf3 {[%clk 0:00:12.9]} 35... Qxf3 {[%clk
0:00:45.6]} 36. Nxh4 {[%clk 0:00:13.3]} 36... Rxh4 {[%clk 0:00:46.2]} 37. Be3
{[%clk 0:00:13.6]} 37... Rh1 {[%clk 0:00:45.9]} 38. Qxh1+ {[%clk 0:00:13.8]}
38... Qxh1+ {[%clk 0:00:46.8]} 39. Kd2 {[%clk 0:00:14.7]} 39... Qg2 {[%clk
0:00:42.9]} 40. Bd5 {[%clk 0:00:13.6]} 40... Bxd5 {[%clk 0:00:41.1]} 41. Rxc8
{[%clk 0:00:13.7]} 41... Qf1 {[%clk 0:00:41.4]} 42. a8=Q {[%clk 0:00:12.9]}
42... Qd3+ {[%clk 0:00:41.1]} 43. Kc1 {[%clk 0:00:12.6]} 43... Bxa8 {[%clk
0:00:41.5]} 44. Rxa8 {[%clk 0:00:12.2]} 44... d5 {[%clk 0:00:37.8]} 45. Ra4
{[%clk 0:00:11.7]} 45... Qf1+ {[%clk 0:00:35.9]} 46. Kd2 {[%clk 0:00:11.4]}
46... Qb1 {[%clk 0:00:34.9]} 47. b3 {[%clk 0:00:08.4]} 47... Qb2+ {[%clk
0:00:30.9]} 48. Ke1 {[%clk 0:00:08.2]} 48... Kg6 {[%clk 0:00:27.3]} 49. Kf1
{[%clk 0:00:08.3]} 49... Kf5 {[%clk 0:00:20.6]} 50. Kg2 {[%clk 0:00:08.4]} 50...
g5 {[%clk 0:00:20.7]} 51. Ra5 {[%clk 0:00:07.9]} 51... Ke5 {[%clk 0:00:20.6]}
52. Ra4 {[%clk 0:00:07.8]} 52... Qc2 {[%clk 0:00:18.2]} 53. Bxg5 {[%clk
0:00:06.8]} 53... Qd1 {[%clk 0:00:17.2]} 54. Be3 {[%clk 0:00:06.1]} 54... Qf3+
{[%clk 0:00:17]} 55. Kh2 {[%clk 0:00:06.1]} 55... Kf5 {[%clk 0:00:16.4]} 56. Ra7
{[%clk 0:00:04.8]} 56... Qh5+ {[%clk 0:00:16]} 57. Kg1 {[%clk 0:00:05.2]} 57...
Kg4 {[%clk 0:00:13.9]} 58. Rg7+ {[%clk 0:00:04.5]} 58... Kf3 {[%clk 0:00:13.7]}
59. Rg3+ {[%clk 0:00:04.7]} 59... Ke2 {[%clk 0:00:14]} 60. a4 {[%clk 0:00:04.9]}
60... Qh8 {[%clk 0:00:12.4]} 61. a5 {[%clk 0:00:03.6]} 61... d4 {[%clk
0:00:12.7]} 62. Bf4 {[%clk 0:00:03.1]} 62... e3 {[%clk 0:00:07.8]} 63. fxe3
{[%clk 0:00:02.9]} 63... d3 {[%clk 0:00:08.2]} 64. e4 {[%clk 0:00:03.3]} 64...
Qd4+ {[%clk 0:00:05.1]} 65. Kh2 {[%clk 0:00:03.8]} 65... d2 {[%clk 0:00:04.4]}
66. Rg2+ {[%clk 0:00:04.2]} 66... Kf3 {[%clk 0:00:04]} 67. Bxd2 {[%clk
0:00:05.1]} 67... Qh8+ {[%clk 0:00:03.6]} 68. Kg1 {[%clk 0:00:05.2]} 68... Qa1+
{[%clk 0:00:03.5]} 69. Kh2 {[%clk 0:00:05.6]} 69... Qe5+ {[%clk 0:00:03.8]} 70.
Kh3 {[%clk 0:00:05.9]} 70... Qh5# {[%clk 0:00:03.6]} 0-1

[Event "Late-Titled-Tuesday-Blitz-March-05-2024"]
[Site "Chess.com"]
[Date "2024.03.05"]
[Round "4"]
[White "santosalberto1987"]
[Black "nindjaxx8"]
[Result "1/2-1/2"]
[WhiteElo "2541"]
[BlackElo "2697"]
[TimeControl "180+1"]
[EndTime "14:40:58 PST"]
[Termination "Game drawn - insufficient material"]

1. e4 {[%clk 0:03:00.9]} 1... e6 {[%clk 0:02:56.6]} 2. d4 {[%clk 0:03:00.8]}
2... d5 {[%clk 0:02:57]} 3. Nc3 {[%clk 0:03:01.3]} 3... dxe4 {[%clk 0:02:57.2]}
4. Nxe4 {[%clk 0:03:01.4]} 4... Nd7 {[%clk 0:02:57.8]} 5. Nf3 {[%clk 0:03:00.8]}
5... Ngf6 {[%clk 0:02:58.7]} 6. Nxf6+ {[%clk 0:02:55.6]} 6... Nxf6 {[%clk
0:02:59.6]} 7. Bd3 {[%clk 0:02:55.8]} 7... Be7 {[%clk 0:02:54.1]} 8. c3 {[%clk
0:02:52.5]} 8... O-O {[%clk 0:02:52.3]} 9. Ne5 {[%clk 0:02:50.8]} 9... c5 {[%clk
0:02:44.1]} 10. dxc5 {[%clk 0:02:49]} 10... Qd5 {[%clk 0:02:40.4]} 11. Qe2
{[%clk 0:02:45.6]} 11... h6 {[%clk 0:02:31.5]} 12. O-O {[%clk 0:02:29.9]} 12...
Qxc5 {[%clk 0:02:25.2]} 13. Bf4 {[%clk 0:02:12.3]} 13... b6 {[%clk 0:01:43.5]}
14. Qf3 {[%clk 0:01:55]} 14... Bd7 {[%clk 0:01:26.4]} 15. Nxd7 {[%clk
0:01:42.9]} 15... Nxd7 {[%clk 0:01:27.3]} 16. Rad1 {[%clk 0:01:39.7]} 16... Nf6
{[%clk 0:01:26.3]} 17. Bc2 {[%clk 0:01:18.6]} 17... Rad8 {[%clk 0:01:21.7]} 18.
h3 {[%clk 0:01:13.7]} 18... Qa5 {[%clk 0:00:53.7]} 19. Qb7 {[%clk 0:01:04.4]}
19... Bc5 {[%clk 0:00:42.3]} 20. b4 {[%clk 0:00:58.4]} 20... Qxa2 {[%clk
0:00:42.2]} 21. bxc5 {[%clk 0:00:18.9]} 21... Qxc2 {[%clk 0:00:41.6]} 22. Rxd8
{[%clk 0:00:19.3]} 22... Rxd8 {[%clk 0:00:41.1]} 23. cxb6 {[%clk 0:00:19.4]}
23... axb6 {[%clk 0:00:40.7]} 24. Be5 {[%clk 0:00:19.3]} 24... Nd5 {[%clk
0:00:38.7]} 25. Ra1 {[%clk 0:00:15.9]} 25... Nxc3 {[%clk 0:00:36.3]} 26. Qxb6
{[%clk 0:00:15.6]} 26... Ne2+ {[%clk 0:00:36]} 27. Kh2 {[%clk 0:00:14.2]} 27...
Rc8 {[%clk 0:00:33.8]} 28. Qe3 {[%clk 0:00:13.4]} 28... Rd8 {[%clk 0:00:08.7]}
29. Ra7 {[%clk 0:00:12.4]} 29... Nc1 {[%clk 0:00:05.2]} 30. Qg3 {[%clk
0:00:08.2]} 30... g6 {[%clk 0:00:05.1]} 31. Qf4 {[%clk 0:00:07]} 31... Qf5
{[%clk 0:00:04.5]} 32. Qxf5 {[%clk 0:00:06.3]} 32... exf5 {[%clk 0:00:04.8]} 33.
Bf4 {[%clk 0:00:06.2]} 33... Nd3 {[%clk 0:00:05.4]} 34. Bxh6 {[%clk 0:00:06.3]}
34... Nxf2 {[%clk 0:00:05.1]} 35. Bg5 {[%clk 0:00:06.7]} 35... Re8 {[%clk
0:00:05]} 36. Bf6 {[%clk 0:00:06.8]} 36... Ne4 {[%clk 0:00:05.3]} 37. Bd4 {[%clk
0:00:06.9]} 37... Rd8 {[%clk 0:00:04.4]} 38. Be5 {[%clk 0:00:06.8]} 38... Re8
{[%clk 0:00:04.5]} 39. Bd4 {[%clk 0:00:06.9]} 39... Nd6 {[%clk 0:00:04.7]} 40.
Rd7 {[%clk 0:00:06.3]} 40... Nb5 {[%clk 0:00:04.5]} 41. Bb2 {[%clk 0:00:05.7]}
41... Rc8 {[%clk 0:00:04.2]} 42. Rb7 {[%clk 0:00:05.4]} 42... Nd6 {[%clk
0:00:04.3]} 43. Rd7 {[%clk 0:00:05.5]} 43... Nc4 {[%clk 0:00:04.8]} 44. Bd4
{[%clk 0:00:05.2]} 44... Nd2 {[%clk 0:00:04]} 45. h4 {[%clk 0:00:04]} 45... Ne4
{[%clk 0:00:04.3]} 46. h5 {[%clk 0:00:03.8]} 46... gxh5 {[%clk 0:00:04.4]} 47.
Be5 {[%clk 0:00:03.4]} 47... Ng5 {[%clk 0:00:04.5]} 48. Bf6 {[%clk 0:00:02.4]}
48... Ne6 {[%clk 0:00:04.4]} 49. Rd5 {[%clk 0:00:02.2]} 49... Kh7 {[%clk
0:00:03.7]} 50. Rxf5 {[%clk 0:00:02.1]} 50... Kg6 {[%clk 0:00:04.4]} 51. Rf3
{[%clk 0:00:01.4]} 51... Rc4 {[%clk 0:00:04.6]} 52. Bb2 {[%clk 0:00:01.2]} 52...
Rh4+ {[%clk 0:00:05]} 53. Kg1 {[%clk 0:00:01.2]} 53... f5 {[%clk 0:00:04.4]} 54.
Rg3+ {[%clk 0:00:01.8]} 54... Rg4 {[%clk 0:00:04.7]} 55. Rf3 {[%clk 0:00:02.7]}
55... Ng5 {[%clk 0:00:04.7]} 56. Re3 {[%clk 0:00:03]} 56... Ne4 {[%clk 0:00:05]}
57. Bc1 {[%clk 0:00:03.3]} 57... h4 {[%clk 0:00:05.5]} 58. Rf3 {[%clk
0:00:03.7]} 58... Nd6 {[%clk 0:00:04.2]} 59. Rf4 {[%clk 0:00:04]} 59... Ne4
{[%clk 0:00:02.9]} 60. Rxg4+ {[%clk 0:00:03.8]} 60... fxg4 {[%clk 0:00:03.8]}
61. Kh2 {[%clk 0:00:04.2]} 61... Kf5 {[%clk 0:00:04.3]} 62. Be3 {[%clk
0:00:04.3]} 62... Kg6 {[%clk 0:00:04.1]} 63. Bc1 {[%clk 0:00:04.5]} 63... g3+
{[%clk 0:00:04.5]} 64. Kh3 {[%clk 0:00:03.7]} 64... Kh5 {[%clk 0:00:05.1]} 65.
Be3 {[%clk 0:00:03.7]} 65... Nf6 {[%clk 0:00:02.6]} 66. Bf4 {[%clk 0:00:02.7]}
66... Ne4 {[%clk 0:00:03]} 67. Be3 {[%clk 0:00:01.8]} 67... Nd6 {[%clk
0:00:02.6]} 68. Bf4 {[%clk 0:00:02]} 68... Nf5 {[%clk 0:00:03.3]} 69. Be5 {[%clk
0:00:02]} 69... Kg5 {[%clk 0:00:02]} 70. Bc7 {[%clk 0:00:02.1]} 70... Nd4 {[%clk
0:00:01.4]} 71. Bxg3 {[%clk 0:00:02.1]} 71... Nf5 {[%clk 0:00:01.7]} 72. Bxh4+
{[%clk 0:00:01.4]} 72... Nxh4 {[%clk 0:00:01.8]} 73. g3 {[%clk 0:00:02.3]} 73...
Nf5 {[%clk 0:00:02.6]} 74. Kg2 {[%clk 0:00:03.1]} 74... Nh6 {[%clk 0:00:03.5]}
75. Kf2 {[%clk 0:00:03.7]} 75... Ng4+ {[%clk 0:00:04.4]} 76. Kg2 {[%clk
0:00:04.5]} 76... Nf6 {[%clk 0:00:05.3]} 77. Kf3 {[%clk 0:00:04.9]} 77... Nh5
{[%clk 0:00:06.2]} 78. Kg2 {[%clk 0:00:05.5]} 78... Nxg3 {[%clk 0:00:06.6]}
1/2-1/2

[Event "Late-Titled-Tuesday-Blitz-March-05-2024"]
[Site "Chess.com"]
[Date "2024.03.05"]
[Round "4"]
[White "vugarrasulov"]
[Black "Szparu"]
[Result "1/2-1/2"]
[WhiteElo "2956"]
[BlackElo "2800"]
[TimeControl "180+1"]
[EndTime "14:41:02 PST"]
[Termination "Game drawn by repetition"]

1. e4 {[%clk 0:03:00.9]} 1... c5 {[%clk 0:02:59.4]} 2. Nf3 {[%clk 0:03:00.1]}
2... a6 {[%clk 0:02:59.9]} 3. g3 {[%clk 0:02:58.6]} 3... b5 {[%clk 0:02:58.7]}
4. Bg2 {[%clk 0:02:58.2]} 4... Bb7 {[%clk 0:02:59.3]} 5. O-O {[%clk 0:02:58.5]}
5... Nc6 {[%clk 0:02:54.7]} 6. d4 {[%clk 0:02:56]} 6... cxd4 {[%clk 0:02:54.5]}
7. Nxd4 {[%clk 0:02:56.9]} 7... e6 {[%clk 0:02:42.9]} 8. Re1 {[%clk 0:02:47.4]}
8... Nxd4 {[%clk 0:02:42.7]} 9. Qxd4 {[%clk 0:02:48.3]} 9... Ne7 {[%clk
0:02:43.1]} 10. Bg5 {[%clk 0:02:40.1]} 10... h6 {[%clk 0:02:40.1]} 11. Bxe7
{[%clk 0:02:37.7]} 11... Bxe7 {[%clk 0:02:39]} 12. Nc3 {[%clk 0:02:27.7]} 12...
O-O {[%clk 0:02:38.1]} 13. Rad1 {[%clk 0:02:26.1]} 13... d6 {[%clk 0:02:37]} 14.
a4 {[%clk 0:02:23.1]} 14... Bc6 {[%clk 0:02:34.6]} 15. axb5 {[%clk 0:02:04.1]}
15... axb5 {[%clk 0:02:35.5]} 16. e5 {[%clk 0:02:02.2]} 16... d5 {[%clk
0:02:14.9]} 17. Ne2 {[%clk 0:01:55.6]} 17... b4 {[%clk 0:02:12.7]} 18. Nf4
{[%clk 0:01:52.8]} 18... g6 {[%clk 0:01:54]} 19. h4 {[%clk 0:01:51.2]} 19... h5
{[%clk 0:01:51.4]} 20. Qd3 {[%clk 0:01:45.6]} 20... Kg7 {[%clk 0:01:47.3]} 21.
Bh3 {[%clk 0:01:28.9]} 21... Bd7 {[%clk 0:01:32]} 22. Ra1 {[%clk 0:01:08.5]}
22... Rxa1 {[%clk 0:01:28.5]} 23. Rxa1 {[%clk 0:01:09.4]} 23... Qc7 {[%clk
0:01:24.7]} 24. Qe3 {[%clk 0:00:46.9]} 24... Qxc2 {[%clk 0:01:00]} 25. Rc1
{[%clk 0:00:44.5]} 25... Qe4 {[%clk 0:00:59.9]} 26. Qxe4 {[%clk 0:00:40.5]}
26... dxe4 {[%clk 0:00:59.9]} 27. Rc7 {[%clk 0:00:41.1]} 27... Rd8 {[%clk
0:00:59.6]} 28. Bg2 {[%clk 0:00:38.8]} 28... Kf8 {[%clk 0:00:53.5]} 29. Bxe4
{[%clk 0:00:38.8]} 29... Ke8 {[%clk 0:00:53.8]} 30. Kg2 {[%clk 0:00:31.6]} 30...
Rc8 {[%clk 0:00:51.7]} 31. Rxc8+ {[%clk 0:00:29.3]} 31... Bxc8 {[%clk
0:00:51.9]} 32. Kf3 {[%clk 0:00:30.2]} 32... Bd8 {[%clk 0:00:48.7]} 33. Nd3
{[%clk 0:00:29]} 33... Be7 {[%clk 0:00:46.7]} 34. Ke3 {[%clk 0:00:28.9]} 34...
Kd8 {[%clk 0:00:46.2]} 35. Kd4 {[%clk 0:00:29.2]} 35... Kc7 {[%clk 0:00:46.8]}
36. f4 {[%clk 0:00:24]} 36... Kb6 {[%clk 0:00:46.5]} 37. b3 {[%clk 0:00:23.9]}
37... Ba6 {[%clk 0:00:46.3]} 38. Ke3 {[%clk 0:00:22.6]} 38... Bb5 {[%clk
0:00:42.6]} 39. Kf3 {[%clk 0:00:19.7]} 39... Ba6 {[%clk 0:00:35.3]} 40. g4
{[%clk 0:00:18.8]} 40... Bxd3 {[%clk 0:00:19]} 41. Bxd3 {[%clk 0:00:18.8]} 41...
Bxh4 {[%clk 0:00:10.8]} 42. gxh5 {[%clk 0:00:18.8]} 42... gxh5 {[%clk
0:00:11.7]} 43. Bh7 {[%clk 0:00:19.1]} 43... f6 {[%clk 0:00:11.3]} 44. Bg8
{[%clk 0:00:12.4]} 44... fxe5 {[%clk 0:00:11.5]} 45. fxe5 {[%clk 0:00:13.3]}
45... Be7 {[%clk 0:00:10.7]} 46. Bxe6 {[%clk 0:00:13.3]} 46... Kc5 {[%clk
0:00:10]} 47. Ke4 {[%clk 0:00:13.8]} 47... h4 {[%clk 0:00:10.1]} 48. Bg4 {[%clk
0:00:12.9]} 48... Bd8 {[%clk 0:00:08.4]} 49. Bh3 {[%clk 0:00:10.7]} 49... Be7
{[%clk 0:00:07.8]} 50. Bf1 {[%clk 0:00:08.8]} 50... Bd8 {[%clk 0:00:07.5]} 51.
Kf5 {[%clk 0:00:09]} 51... Kd4 {[%clk 0:00:07.3]} 52. e6 {[%clk 0:00:08.8]}
52... Be7 {[%clk 0:00:06.6]} 53. Kg6 {[%clk 0:00:07.5]} 53... Ke5 {[%clk
0:00:06.6]} 54. Kf7 {[%clk 0:00:07.7]} 54... Kd6 {[%clk 0:00:07]} 55. Bh3 {[%clk
0:00:07.4]} 55... Bd8 {[%clk 0:00:07.2]} 56. Kg6 {[%clk 0:00:07.6]} 56... Be7
{[%clk 0:00:07.4]} 57. Kf5 {[%clk 0:00:08.1]} 57... Bd8 {[%clk 0:00:07.8]} 58.
Ke4 {[%clk 0:00:08.8]} 58... Be7 {[%clk 0:00:08.2]} 59. Kd4 {[%clk 0:00:09.5]}
59... Kc6 {[%clk 0:00:07.8]} 60. Kc4 {[%clk 0:00:08.9]} 60... Kb6 {[%clk
0:00:08.1]} 61. Bg2 {[%clk 0:00:08.1]} 61... Kc7 {[%clk 0:00:07.6]} 62. Kd5
{[%clk 0:00:07.4]} 62... Bf8 {[%clk 0:00:07.4]} 63. Bh3 {[%clk 0:00:07.1]} 63...
Be7 {[%clk 0:00:07.9]} 64. Ke5 {[%clk 0:00:06.9]} 64... Bf8 {[%clk 0:00:08]} 65.
Kf6 {[%clk 0:00:07.1]} 65... Kd6 {[%clk 0:00:08.1]} 66. Kf7 {[%clk 0:00:07.6]}
66... Be7 {[%clk 0:00:08.3]} 67. Bg2 {[%clk 0:00:07.7]} 67... Bd8 {[%clk
0:00:08.3]} 68. Bh3 {[%clk 0:00:07]} 68... Be7 {[%clk 0:00:08.6]} 69. Kg6 {[%clk
0:00:07.6]} 69... Bd8 {[%clk 0:00:08.8]} 70. Kf5 {[%clk 0:00:08.3]} 70... Be7
{[%clk 0:00:08.9]} 71. Ke4 {[%clk 0:00:08.8]} 71... Bf8 {[%clk 0:00:07.4]} 72.
Kd4 {[%clk 0:00:08.8]} 72... Be7 {[%clk 0:00:06.3]} 73. Kc4 {[%clk 0:00:09.4]}
73... Kc6 {[%clk 0:00:06.6]} 74. Bg4 {[%clk 0:00:01.4]} 74... Kb6 {[%clk
0:00:05.3]} 75. Bh3 {[%clk 0:00:02.3]} 75... Kc7 {[%clk 0:00:05.3]} 76. Kd5
{[%clk 0:00:02.9]} 76... Kb6 {[%clk 0:00:05.6]} 77. Bg4 {[%clk 0:00:02.9]} 77...
Kc7 {[%clk 0:00:05.9]} 78. Bh3 {[%clk 0:00:03.8]} 78... Kb6 {[%clk 0:00:06.1]}
79. Bg4 {[%clk 0:00:04.7]} 79... Kc7 {[%clk 0:00:06.2]} 80. Bh3 {[%clk
0:00:05.6]} 1/2-1/2